bitfinex/quotes_ETHUSD_20240707
["timestamp","ask_amount","ask_price","bid_price","bid_amount"]
[1720353032548,0.09277167,3020.4,3020.3,2.31765]
[1720353032753,0.09277167,3020.4,3020.3,2.38385601]
[1720353032953,2.5761,3020.9,3020.4,2.31755]
[1720353033279,2.5761,3020.9,3020.5,0.0662054]
[1720353033881,2.5761,3020.9,3020.0,2.2774]
[1720353034188,2.5761,3020.9,3020.1,0.22774]
[1720353034340,2.5761,3020.9,3020.4,2.3175]
[1720353035283,2.5761,3020.9,3020.3,2.31761]
[1720353035586,3.51840548,3020.8,3019.6,3.1351]
[1720353035734,2.9022,3020.6,3019.8,2.31799]
[1720353035939,0.55,3020.5,3019.7,3.0]
[1720353036236,0.64297958,3020.5,3020.0,2.31787]
[1720353038091,0.64297958,3020.5,3019.9,3.1351]
[1720353038254,0.64297958,3020.5,3020.0,2.38403254]
[1720353038650,0.64297958,3020.5,3020.0,2.31783]
[1720353038959,0.09297958,3020.5,3020.2,2.3177]
[1720353039404,5.4783,3020.9,3020.2,2.3177]
[1720353039695,5.4783,3020.9,3020.3,2.31765]
[1720353039879,5.4783,3020.9,3020.2,2.3177]
[1720353039880,0.09304029,3020.8,3020.2,2.26128258]
[1720353040187,0.09304029,3020.8,3020.5,4.52202515]
[1720353040490,0.09304029,3020.8,3020.5,4.43905835]
[1720353040696,0.09304029,3020.8,3020.5,2.31743]
[1720353040859,0.09304029,3020.8,3020.5,4.59504594]
[1720353041262,0.09304029,3020.8,3020.6,2.31741]
[1720353043064,0.09304029,3020.8,3020.7,2.31734]
[1720353043470,0.09304029,3020.8,3020.7,4.63468]
[1720353043702,2.5761,3021.2,3020.9,2.31717]
[1720353043866,2.5761,3021.2,3020.7,2.31734]
[1720353044058,0.09317318,3021.1,3020.9,2.31717]
[1720353046047,0.09317318,3021.1,3020.7,2.31734]
[1720353046305,0.09317318,3021.1,3020.9,2.31717]
[1720353048058,0.09317318,3021.1,3020.7,2.31734]
[1720353048278,0.09317318,3021.1,3020.7,5.31734]
[1720353048526,0.09317318,3021.1,3021.0,2.31711]
[1720353048709,0.09317318,3021.1,3021.0,5.31711]
[1720353049275,0.09317318,3021.1,3021.0,7.63422]
[1720353052786,0.09317318,3021.1,3021.0,10.76932]
[1720353055186,0.09317318,3021.1,3021.0,13.08643]
[1720353055783,3.1768,3022.0,3021.7,2.31654]
[1720353056090,0.09391377,3021.9,3021.7,2.31654]
[1720353057163,0.09391377,3021.9,3021.7,2.31652]
[1720353057361,0.09391377,3021.9,3021.3,1.95182025]
[1720353057606,3.1768,3022.3,3021.8,2.3165]
[1720353057806,3.49448,3022.3,3021.8,2.3165]
[1720353058182,3.49448,3022.3,3021.8,4.63295]
[1720353059673,3.1768,3022.3,3021.6,2.31662]
[1720353060211,3.1768,3022.3,3021.5,3.0]
[1720353060411,3.1768,3022.3,3021.6,2.31661]
[1720353061768,3.1768,3022.3,3021.5,3.0]
[1720353061969,3.1768,3022.3,3021.6,2.31661]
[1720353062202,0.31768,3022.2,3021.6,2.31661]
[1720353062510,0.31768,3022.2,3021.6,4.63321]
[1720353063303,2.65881482,3022.6,3021.6,2.3166]
[1720353063471,0.55,3022.5,3021.9,2.31641]
[1720353063894,0.55,3022.5,3021.8,2.31644]
[1720353064101,0.55,3022.5,3021.9,2.31641]
[1720353064321,3.48941,3022.4,3021.6,5.31661]
[1720353064516,3.7268,3022.3,3021.5,3.0]
[1720353064672,3.7268,3022.3,3021.4,2.31674]
[1720353064889,3.80952117,3022.3,3021.3,2.31683]
[1720353065313,3.80952117,3022.3,3021.4,2.3168]
[1720353065633,3.1768,3022.1,3021.4,2.3168]
[1720353065784,3.1768,3022.1,3021.2,3.0]
[1720353065785,3.1768,3022.1,3021.2,3.00177011]
[1720353065983,0.09339146,3022.0,3021.2,2.3169]
[1720353066417,0.09339146,3022.0,3020.3,3.81762]
[1720353066418,3.1768,3021.9,3020.9,2.31712]
[1720353066601,3.1768,3021.7,3021.0,2.31709]
[1720353066799,3.1768,3021.7,3020.8,2.31721]
[1720353066983,3.1768,3021.5,3020.8,2.31721]
[1720353067297,3.1768,3021.5,3020.5,2.31746]
[1720353067506,0.97031843,3021.4,3020.4,3.11752]
[1720353067691,3.1768,3021.3,3020.4,3.11752]
[1720353067914,0.09331662,3021.2,3020.4,3.11752]
[1720353068112,3.1768,3021.1,3019.9,2.3179]
[1720353068323,3.0,3020.9,3019.9,2.3179]
[1720353068480,3.82009996,3020.8,3019.9,2.3179]
[1720353069037,3.82009996,3020.8,3019.7,2.31808]
[1720353069200,6.39619996,3020.8,3019.7,2.31808]
[1720353069386,6.39619996,3020.8,3019.8,2.31802]
[1720353069893,6.39619996,3020.8,3019.9,2.31795]
[1720353070085,6.39619996,3020.8,3019.7,2.31805]
[1720353070288,6.39619996,3020.8,3019.3,3.493]
[1720353070289,3.1768,3020.6,3019.5,2.31824]
[1720353070601,3.64316359,3020.5,3019.5,2.31824]
[1720353071335,3.64316359,3020.5,3019.6,2.31812]
[1720353071697,3.64316359,3020.5,3019.6,5.31812]
[1720353073116,3.64316359,3020.5,3019.6,3.0]
[1720353073322,0.64316359,3020.5,3019.7,2.3181]
[1720353073495,0.64316359,3020.5,3019.6,3.0]
[1720353073496,0.09316359,3020.5,3019.6,3.0]
[1720353073693,2.5761,3020.8,3020.1,2.31777]
[1720353073924,0.09293104,3020.7,3020.1,2.31777]
[1720353075227,0.09293104,3020.7,3020.2,2.31772]
[1720353075952,0.09293104,3020.7,3020.1,2.31777]
[1720353076437,0.09293104,3020.7,3019.6,3.0]
[1720353076438,0.09293104,3020.7,3020.2,2.31772]
[1720353076641,0.09293104,3020.7,3019.7,2.31807]
[1720353076848,6.5931,3020.6,3019.6,3.0]
[1720353076996,1.22687884,3020.5,3019.5,2.48426]
[1720353077195,1.31957277,3020.5,3019.5,2.48426]
[1720353077493,1.31957277,3020.5,3019.6,2.31818]
[1720353077838,0.64269393,3020.5,3019.6,2.31818]
[1720353078148,0.64269393,3020.5,3019.5,5.48421]
[1720353078302,3.5931,3020.4,3019.5,0.166]
[1720353078525,0.09264513,3020.3,3019.5,0.166]
[1720353078710,0.09264513,3020.3,3019.5,2.48424]
[1720353078910,0.09264513,3020.3,3019.6,2.31818]
[1720353079110,0.09264513,3020.3,3020.0,2.31782]
[1720353079317,6.1692,3020.8,3019.8,3.0]
[1720353079540,0.09272927,3020.7,3020.0,2.31783]
[1720353079848,0.09272927,3020.7,3019.9,2.31791]
[1720353081557,0.09272927,3020.7,3019.9,2.31789]
[1720353081758,3.5931,3020.6,3019.7,2.31807]
[1720353081957,3.5931,3020.6,3019.8,2.31798]
[1720353082157,0.09289638,3020.5,3019.8,5.31798]
[1720353083536,0.09289638,3020.5,3019.8,3.0]
[1720353083766,0.09289638,3020.5,3019.8,2.31798]
[1720353083972,0.09289638,3020.5,3019.8,5.31798]
[1720353085181,0.09289638,3020.5,3019.8,3.0]
[1720353085375,0.09289638,3020.5,3019.7,2.31807]
[1720353085535,0.09289638,3020.5,3019.6,3.0]
[1720353085737,0.09289638,3020.5,3019.7,2.31805]
[1720353085938,0.09289638,3020.5,3019.8,2.31798]
[1720353086167,0.09289638,3020.5,3019.8,1.94448757]
[1720353086367,0.09289638,3020.5,3019.7,2.31805]
[1720353086551,0.09289638,3020.5,3019.8,0.231805]
[1720353086966,0.09289638,3020.5,3019.7,2.31805]
[1720353087469,0.09289638,3020.5,3019.8,2.31798]
[1720353087850,0.09289638,3020.5,3019.7,2.31805]
[1720353087851,0.09289638,3020.5,3019.9,2.31793]
[1720353088887,0.09289638,3020.5,3019.7,4.6361]
[1720353089089,0.09289638,3020.5,3019.8,2.31802]
[1720353089238,0.09289638,3020.5,3019.7,2.31805]
[1720353089442,0.09289638,3020.5,3019.8,2.31802]
[1720353090646,0.09289638,3020.5,3019.7,2.3181]
[1720353091078,0.09289638,3020.5,3019.8,2.31798]
[1720353091868,0.09289638,3020.5,3019.9,2.31795]
[1720353093167,0.09289638,3020.5,3020.0,2.31785]
[1720353094096,0.09289638,3020.5,3019.9,4.63585]
[1720353094314,0.09289638,3020.5,3019.9,2.3179]
[1720353094915,0.09289638,3020.5,3020.0,2.31787]
[1720353098018,0.09289638,3020.5,3020.2,2.31767]
[1720353098223,2.5761,3020.8,3020.4,2.31757]
[1720353098393,5.0616,3020.9,3020.4,2.31757]
[1720353098813,5.0616,3020.9,3019.9,3.493]
[1720353099014,5.0616,3020.9,3020.7,2.31733]
[1720353099934,5.0616,3020.9,3020.5,2.31744]
[1720353100235,5.0616,3020.9,3020.2,3.0]
[1720353100644,5.0616,3020.9,3020.5,2.31745]
[1720353100808,5.0616,3020.9,3020.5,2.31744]
[1720353101637,5.0616,3020.9,3020.6,2.31736]
[1720353101951,5.0616,3020.9,3020.4,2.31751]
[1720353102106,5.0616,3020.9,3020.4,5.31751]
[1720353102636,5.0616,3020.9,3020.5,2.31748]
[1720353102846,5.0616,3020.9,3020.5,2.31744]
[1720353103522,5.0616,3020.9,3020.2,3.0]
[1720353103706,5.0616,3020.9,3020.5,2.31745]
[1720353103905,5.0616,3020.9,3020.5,4.63489]
[1720353104611,5.0616,3020.9,3020.5,4.43578946]
[1720353105041,5.0616,3020.9,3020.3,4.63519]
[1720353105225,5.0616,3020.9,3020.4,3.0]
[1720353105545,5.0616,3020.9,3020.3,1.79997859]
[1720353106944,5.0616,3020.9,3020.2,3.0]
[1720353107254,5.0616,3020.9,3020.1,2.31774]
[1720353107428,5.0616,3020.9,3020.2,2.31767]
[1720353107755,5.0616,3020.9,3020.3,2.31764]
[1720353107968,5.0616,3020.9,3020.3,3.0]
[1720353108266,5.0616,3020.9,3020.3,5.31764]
[1720353108561,5.0616,3020.9,3020.3,2.31764]
[1720353110731,0.09281502,3020.8,3020.3,2.31764]
[1720353112432,0.09281502,3020.8,3020.5,2.31742]
[1720353112655,7.6377,3021.2,3020.5,4.63484]
[1720353113171,0.09290063,3021.1,3020.5,4.63484]
[1720353116274,0.09290063,3021.1,3020.5,2.31742]
[1720353116706,7.6377,3021.2,3020.5,2.31742]
[1720353117070,0.09288731,3021.1,3020.5,2.31742]
[1720353117308,0.09288731,3021.1,3020.4,3.0]
[1720353117591,7.6377,3021.2,3020.4,5.31754]
[1720353117803,0.09288731,3021.1,3020.4,5.31754]
[1720353118000,4.7372,3021.0,3020.4,3.0]
[1720353118152,4.7372,3021.0,3020.2,5.31771]
[1720353118358,0.09285176,3020.9,3020.2,3.0]
[1720353118605,4.7372,3020.8,3020.0,5.31781]
[1720353118808,4.83002733,3020.8,3020.0,5.31781]
[1720353119104,4.83002733,3020.8,3020.1,2.3178]
[1720353119453,4.83002733,3020.8,3020.2,2.31768]
[1720353119656,4.83002733,3020.8,3020.2,5.31768]
[1720353120597,4.83002733,3020.8,3020.3,2.31763]
[1720353120803,4.83002733,3020.8,3020.3,5.31763]
[1720353121158,4.83002733,3020.8,3020.4,3.0]
[1720353121386,4.83002733,3020.8,3020.3,2.31763]
[1720353122408,0.09282733,3020.8,3020.6,2.31741]
[1720353122717,4.7372,3021.1,3020.6,2.31741]
[1720353122911,0.0927988,3020.7,3020.6,2.31741]
[1720353123113,4.7372,3021.1,3020.6,2.31741]
[1720353123303,4.7372,3021.1,3020.8,2.31725]
[1720353123715,4.7372,3021.1,3020.6,4.63476]
[1720353123915,4.7372,3021.1,3020.6,2.31735]
[1720353124085,4.7372,3021.1,3020.4,3.0]
[1720353124285,4.7372,3021.1,3020.6,2.31735]
[1720353124489,4.7372,3021.1,3020.6,4.63471]
[1720353125628,4.7372,3021.1,3020.6,2.31735]
[1720353125814,0.09274857,3021.0,3020.6,2.31735]
[1720353126334,0.09274857,3021.0,3020.4,5.31754]
[1720353126493,0.09274857,3021.0,3020.6,2.31736]
[1720353126692,0.09274857,3021.0,3020.6,4.63472]
[1720353126894,0.09274857,3021.0,3020.2,3.0]
[1720353127230,0.09274857,3021.0,3020.6,2.31735]
[1720353127429,0.09274857,3021.0,3020.6,4.63472]
[1720353127796,0.09274857,3021.0,3020.7,2.31733]
[1720353129695,0.09274857,3021.0,3020.6,1.94572027]
[1720353129895,0.09274857,3021.0,3020.7,2.31733]
[1720353130910,0.09274857,3021.0,3020.8,2.31723]
[1720353132222,0.09274857,3021.0,3020.6,1.94572027]
[1720353132429,0.09274857,3021.0,3020.7,2.31734]
[1720353134014,0.09274857,3021.0,3020.8,2.31726]
[1720353135819,0.25874857,3021.0,3020.8,2.31726]
[1720353138019,0.25874857,3021.0,3020.9,2.31719]
[1720353138223,0.25874857,3021.0,3020.9,5.31719]
[1720353140761,0.25874857,3021.0,3020.9,7.63438]
[1720353141258,0.25874857,3021.0,3020.9,5.31719]
[1720353141553,0.25874857,3021.0,3020.9,2.31719]
[1720353141758,0.25874857,3021.0,3020.9,5.31719]
[1720353142354,0.166,3021.0,3020.9,3.0]
[1720353142558,0.25891997,3021.0,3020.9,1.99535342]
[1720353143118,0.25891997,3021.0,3020.8,3.0]
[1720353143421,0.25891997,3021.0,3020.6,3.0]
[1720353143654,0.25891997,3021.0,3020.5,2.31748]
[1720353143965,0.25891997,3021.0,3020.7,2.31728]
[1720353144525,0.25891997,3021.0,3020.8,2.31726]
[1720353144714,0.25891997,3021.0,3020.8,3.0]
[1720353144944,0.25891997,3021.0,3020.8,5.31726]
[1720353145344,0.25891997,3021.0,3020.8,3.00151918]
[1720353145545,0.25891997,3021.0,3020.8,2.31726]
[1720353145758,0.25891997,3021.0,3020.7,2.31728]
[1720353146350,0.25891997,3021.0,3020.4,3.75608971]
[1720353146861,0.25891997,3021.0,3020.8,2.31719]
[1720353147822,0.25891997,3021.0,3020.8,5.31719]
[1720353148428,0.25891997,3021.0,3020.8,3.0]
[1720353148628,0.25891997,3021.0,3020.7,2.31728]
[1720353148821,0.25891997,3021.0,3020.9,2.31719]
[1720353149151,0.25891997,3021.0,3020.9,4.63438]
[1720353149350,0.25891997,3021.0,3020.9,7.63438]
[1720353149552,0.166,3021.0,3020.9,7.63438]
[1720353151535,0.166,3021.0,3020.9,3.0]
[1720353151869,0.25286099,3021.0,3020.8,3.0]
[1720353152174,0.25286099,3021.0,3020.7,2.31728]
[1720353152328,0.166,3021.0,3020.7,2.31728]
[1720353152524,0.166,3021.0,3020.6,3.0]
[1720353152763,0.166,3021.0,3020.3,2.31762]
[1720353152764,0.166,3021.0,3020.7,2.31728]
[1720353153131,0.166,3021.0,3020.8,2.3172]
[1720353153354,0.166,3021.0,3020.8,5.3172]
[1720353153745,0.166,3021.0,3020.9,2.31719]
[1720353153947,0.166,3021.0,3020.9,5.31719]
[1720353154332,0.166,3021.0,3020.9,2.31719]
[1720353154963,0.166,3021.0,3020.9,4.63438]
[1720353155272,0.166,3021.0,3020.9,7.63438]
[1720353157375,0.166,3021.0,3020.9,7.54148803]
[1720353158244,0.166,3021.0,3020.9,5.22429803]
[1720353158450,0.166,3021.0,3020.8,3.0]
[1720353158650,0.166,3021.0,3020.7,2.3173]
[1720353159999,0.166,3021.0,3020.9,2.31719]
[1720353161385,0.166,3021.0,3020.8,5.31724]
[1720353161594,0.166,3021.0,3020.8,2.31724]
[1720353161964,0.166,3021.0,3020.8,2.31726]
[1720353162187,0.166,3021.0,3020.6,5.31738]
[1720353162459,6.0324,3020.9,3020.2,5.31768]
[1720353162675,6.0324,3020.9,3020.3,3.0]
[1720353162975,0.08596276,3020.8,3020.4,2.31753]
[1720353164995,0.08596276,3020.8,3020.3,3.0]
[1720353165201,0.08596276,3020.8,3020.5,2.31749]
[1720353167171,0.08596276,3020.8,3020.4,3.0]
[1720353167398,0.08596276,3020.8,3020.4,0.6839525]
[1720353167697,0.08596276,3020.8,3020.3,2.31758]
[1720353168093,0.08596276,3020.8,3020.3,2.31759]
[1720353169177,0.08596276,3020.8,3020.4,2.31756]
[1720353169378,0.08596276,3020.8,3019.9,7.57842334]
[1720353169587,0.08596276,3020.8,3020.0,3.0]
[1720353169773,0.08596276,3020.8,3020.4,2.31756]
[1720353169972,0.08596276,3020.8,3020.4,5.31756]
[1720353171579,0.08596276,3020.8,3020.4,3.0]
[1720353171785,0.08596276,3020.8,3020.3,2.31759]
[1720353171975,0.08596276,3020.8,3020.4,2.31756]
[1720353172165,0.08596276,3020.8,3020.4,5.31756]
[1720353172911,0.08596276,3020.8,3020.4,3.0]
[1720353173114,0.08596276,3020.8,3020.4,2.31756]
[1720353173407,0.08596276,3020.8,3020.4,5.31756]
[1720353173975,0.08596276,3020.8,3020.4,2.31756]
[1720353175004,0.08596276,3020.8,3020.2,5.31772]
[1720353175195,0.08596276,3020.8,3020.3,3.0]
[1720353175400,0.08596276,3020.8,3020.4,2.31752]
[1720353175576,0.08596276,3020.8,3020.4,4.63504]
[1720353175912,0.08596276,3020.8,3020.5,3.0]
[1720353176093,0.08596276,3020.8,3020.5,5.31749]
[1720353177204,0.08596276,3020.8,3020.5,3.0014425]
[1720353177402,0.08596276,3020.8,3020.5,2.31749]
[1720353179317,0.08596276,3020.8,3020.5,5.31749]
[1720353180332,0.08596276,3020.8,3020.5,3.0]
[1720353180620,0.08596276,3020.8,3020.1,2.31772]
[1720353180924,0.08596276,3020.8,3020.3,2.31758]
[1720353181081,0.08596276,3020.8,3020.3,5.31758]
[1720353181419,0.08596276,3020.8,3020.4,2.31757]
[1720353181632,0.08596276,3020.8,3020.5,2.31748]
[1720353181935,0.08596276,3020.8,3020.5,5.31748]
[1720353183232,0.08596276,3020.8,3020.5,3.0]
[1720353183437,0.08596276,3020.8,3020.5,2.31743]
[1720353183733,0.08596276,3020.8,3020.5,5.31743]
[1720353184646,0.08596276,3020.8,3020.5,3.0]
[1720353184819,0.08596276,3020.8,3020.4,2.31757]
[1720353185026,0.08596276,3020.8,3020.5,2.31743]
[1720353185237,0.08596276,3020.8,3020.5,5.31743]
[1720353187132,0.08596276,3020.8,3020.5,3.0]
[1720353187341,0.08596276,3020.8,3020.7,4.63468]
[1720353187512,0.08596276,3020.8,3020.6,6.0431]
[1720353187513,0.166,3021.0,3020.9,2.31719]
[1720353187708,0.166,3021.0,3020.9,5.31719]
[1720353188932,0.166,3021.0,3020.9,7.63438]
[1720353197588,0.166,3021.0,3020.9,15.01608]
[1720353198245,0.166,3021.0,3020.9,7.63438]
[1720353198452,0.24881806,3021.0,3020.9,7.63438]
[1720353199795,7.66141806,3021.0,3020.9,3.0]
[1720353199994,7.66141806,3021.0,3020.8,2.3172]
[1720353200304,7.5786,3021.0,3020.9,0.2]
[1720353200478,7.5786,3021.0,3020.9,3.2]
[1720353200796,7.66141806,3021.0,3020.9,3.2]
[1720353201293,7.66141806,3021.0,3020.9,0.2]
[1720353201509,7.66141806,3021.0,3020.2,1.5]
[1720353201797,7.5786,3021.0,3020.2,1.5]
[1720353202282,0.08280895,3020.9,3020.2,1.5]
[1720353202490,0.08280895,3020.9,3020.2,1.83473162]
[1720353202670,7.5786,3021.0,3020.5,2.31742]
[1720353203895,7.5786,3021.0,3020.7,2.31733]
[1720353205994,7.5786,3021.0,3020.7,4.63466]
[1720353206166,7.5786,3021.0,3020.8,3.0]
[1720353206372,0.166,3021.0,3020.8,3.0]
[1720353206802,0.166,3021.0,3020.8,5.31726]
[1720353207510,0.166,3021.0,3020.8,2.31726]
[1720353212088,0.166,3021.0,3020.6,3.0]
[1720353212089,7.4126,3020.9,3020.6,5.31735]
[1720353212290,7.49434428,3020.9,3020.6,2.31735]
[1720353213524,7.49434428,3020.9,3020.6,4.63471]
[1720353213727,7.49434428,3020.9,3020.7,3.0]
[1720353214226,7.49434428,3020.9,3020.6,2.31735]
[1720353215122,7.49434428,3020.9,3020.7,2.31734]
[1720353215328,0.08174428,3020.9,3020.7,5.31734]
[1720353217425,0.08174428,3020.9,3020.7,5.28747825]
[1720353221533,0.08174428,3020.9,3020.8,2.31726]
[1720353221739,0.08174428,3020.9,3020.8,5.28739826]
[1720353222503,0.08174428,3020.9,3020.8,2.28739826]
[1720353225512,0.166,3021.0,3020.9,2.31719]
[1720353225949,0.166,3021.0,3020.9,4.60120028]
[1720353226241,0.166,3021.0,3020.9,7.60120028]
[1720353227514,0.166,3021.0,3020.9,5.31719]
[1720353227909,0.166,3021.0,3020.9,12.70659]
[1720353228325,0.166,3021.0,3020.9,15.02378]
[1720353230548,0.24771136,3021.0,3020.9,15.02378]
[1720353230846,0.24771136,3021.0,3020.9,12.02378]
[1720353233308,0.24771136,3021.0,3020.9,11.45315789]
[1720353235470,0.24771136,3021.0,3020.9,14.45315789]
[1720353235767,0.166,3021.0,3020.9,14.45315789]
[1720353235971,0.24778505,3021.0,3020.9,14.45315789]
[1720353237095,0.24778505,3021.0,3020.9,7.63438]
[1720353247781,0.166,3021.0,3020.9,7.63438]
[1720353249027,0.166,3021.0,3020.9,9.95157]
[1720353249328,6.9377,3021.7,3021.6,2.31665]
[1720353249488,6.8227,3022.0,3021.9,4.63277]
[1720353250229,6.8227,3022.7,3022.1,2.31621]
[1720353250389,6.8227,3022.7,3022.2,2.31614]
[1720353250588,6.8227,3022.5,3022.2,2.31614]
[1720353250815,0.07685556,3022.4,3022.2,2.31614]
[1720353252457,0.07685556,3022.4,3022.3,2.31611]
[1720353253428,0.07685556,3022.4,3022.1,2.31621]
[1720353253854,0.07685556,3022.4,3022.3,2.31611]
[1720353256018,0.07685556,3022.4,3022.1,2.31621]
[1720353256971,0.07685556,3022.4,3022.1,4.63243]
[1720353257265,6.8227,3022.5,3022.1,4.63243]
[1720353257659,0.07734617,3022.4,3022.1,4.63243]
[1720353257827,0.07734617,3022.4,3022.1,2.31621]
[1720353258030,0.07734617,3022.4,3022.1,2.31622]
[1720353258329,0.07734617,3022.4,3021.9,2.31638]
[1720353258532,0.07734617,3022.4,3022.0,2.31632]
[1720353259079,6.8227,3022.5,3022.0,2.31632]
[1720353259490,7.50497,3022.5,3021.7,2.6441049]
[1720353259782,7.50497,3022.5,3021.5,2.31666]
[1720353259985,6.9742,3022.3,3021.6,2.31659]
[1720353260137,0.07733751,3022.2,3021.6,2.31659]
[1720353260343,7.05153751,3022.2,3021.5,2.31666]
[1720353260544,7.05153751,3022.2,3021.4,0.32892164]
[1720353260746,7.05153751,3022.2,3021.6,2.31659]
[1720353261587,7.75669126,3022.2,3021.2,3.0]
[1720353262579,7.75669126,3022.2,3021.1,2.65284535]
[1720353262580,7.75669126,3022.2,3021.1,2.31699]
[1720353263476,7.75669126,3022.2,3020.9,2.64300101]
[1720353263876,7.75669126,3022.2,3021.1,2.31697]
[1720353265061,7.75669126,3022.2,3021.2,2.31694]
[1720353265401,6.9742,3022.0,3021.2,2.31694]
[1720353265699,6.9742,3021.8,3021.1,2.31697]
[1720353266047,0.07707698,3021.7,3021.1,4.63393]
[1720353266291,0.07707698,3021.7,3021.1,2.31696]
[1720353267282,0.07707698,3021.7,3021.0,3.0]
[1720353267489,6.9742,3021.6,3020.7,5.3173]
[1720353267647,6.9742,3021.6,3020.8,2.31724]
[1720353267843,0.07710855,3021.5,3020.8,5.31724]
[1720353268352,0.07710855,3021.5,3020.8,2.31724]
[1720353268891,0.07710855,3021.5,3020.9,2.31718]
[1720353269277,0.07710855,3021.5,3020.9,5.31718]
[1720353271391,6.9742,3021.6,3020.9,5.31718]
[1720353271888,6.9742,3021.6,3020.8,3.0]
[1720353272577,6.9742,3021.6,3020.8,5.31724]
[1720353275156,6.9742,3021.6,3020.8,7.63445]
[1720353276911,6.9742,3021.6,3020.9,2.31718]
[1720353277778,6.9742,3021.6,3020.8,7.63442]
[1720353277955,6.9742,3021.6,3020.9,2.31718]
[1720353279181,6.9742,3021.6,3021.0,2.3171]
[1720353279523,6.9742,3021.6,3021.2,2.31691]
[1720353279821,6.9742,3021.6,3021.3,2.31687]
[1720353284436,6.9742,3021.6,3021.2,2.31691]
[1720353284782,6.9742,3021.6,3021.3,2.31682]
[1720353285834,6.9742,3021.6,3021.5,0.2]
[1720353287819,6.9742,3021.6,3021.2,2.31691]
[1720353288702,6.9742,3021.6,3021.0,3.0]
[1720353289739,6.9742,3021.6,3021.3,2.31683]
[1720353299350,6.9742,3021.6,3021.0,3.0]
[1720353299566,6.9495,3021.9,3021.6,2.31665]
[1720353299881,0.07195065,3021.8,3021.6,2.31665]
[1720353301754,0.07195065,3021.8,3021.6,4.63325]
[1720353302149,0.07195065,3021.8,3021.7,4.63314]
[1720353302388,0.07195065,3021.8,3021.7,2.31657]
[1720353302389,7.02145065,3021.8,3021.7,2.31657]
[1720353302581,7.02145065,3021.8,3021.0,12.55898]
[1720353302582,6.9495,3021.8,3021.3,2.31684]
[1720353302883,7.02136589,3021.8,3021.3,2.31684]
[1720353303851,7.02136589,3021.8,3021.2,3.0]
[1720353304188,7.02136589,3021.8,3020.9,5.31717]
[1720353304367,7.02136589,3021.8,3020.9,2.31717]
[1720353304885,7.02136589,3021.8,3021.1,2.31698]
[1720353305401,6.9495,3021.8,3021.1,2.31698]
[1720353305684,7.02144683,3021.7,3021.1,2.31698]
[1720353306263,7.02144683,3021.7,3021.1,4.63397]
[1720353306563,7.02144683,3021.7,3021.2,3.0]
[1720353307186,6.9495,3021.7,3021.2,5.31695]
[1720353307557,0.07104384,3021.6,3021.2,5.31695]
[1720353310374,0.07104384,3021.6,3021.2,3.0]
[1720353310591,0.07104384,3021.6,3021.3,2.31683]
[1720353310793,0.07104384,3021.6,3021.3,4.63365]
[1720353310995,6.9495,3021.7,3021.4,2.3168]
[1720353311297,6.9495,3021.7,3021.3,4.63365]
[1720353311473,6.9495,3021.7,3021.3,2.31682]
[1720353314499,6.9495,3021.7,3021.3,4.63365]
[1720353314796,6.9495,3021.7,3021.4,2.31677]
[1720353315565,7.238,3022.3,3021.5,2.31672]
[1720353315844,0.07116468,3022.2,3021.5,2.31672]
[1720353316130,7.238,3022.1,3021.5,2.51672]
[1720353316495,0.07111584,3022.0,3021.5,2.51672]
[1720353317123,0.07111584,3022.0,3021.5,0.2]
[1720353317335,7.238,3021.9,3021.5,0.2]
[1720353317692,7.238,3021.7,3021.5,0.2]
[1720353318123,0.071031,3021.6,3021.5,0.2]
[1720353319996,7.238,3022.0,3021.5,0.2]
[1720353320205,0.07001172,3021.9,3021.5,0.4]
[1720353320840,0.07001172,3021.9,3021.5,2.71666]
[1720353321039,7.238,3022.2,3021.7,4.63308]
[1720353321195,0.07004771,3022.1,3021.8,2.31649]
[1720353322311,0.07004771,3022.1,3021.9,2.31636]
[1720353322635,2.5761,3023.0,3021.9,2.31636]
[1720353322636,7.238,3022.6,3022.0,2.31634]
[1720353322807,0.07014545,3022.5,3022.0,2.31634]
[1720353323841,0.07014545,3022.5,3022.1,2.31625]
[1720353324143,0.07014545,3022.5,3022.1,4.63245]
[1720353324323,0.07014545,3022.5,3022.4,0.2]
[1720353327439,0.07014545,3022.5,3021.9,2.31639]
[1720353327656,7.238,3022.6,3022.1,4.63242]
[1720353327856,7.238,3022.6,3022.2,2.31619]
[1720353328203,7.238,3022.6,3022.3,2.3161]
[1720353328973,7.238,3023.3,3022.6,2.31583]
[1720353329245,0.07045124,3023.2,3022.7,2.3158]
[1720353329458,7.238,3023.3,3022.8,2.31572]
[1720353329605,0.07050902,3023.2,3022.8,2.31572]
[1720353329805,7.238,3023.3,3022.8,2.31572]
[1720353330360,0.07050902,3023.2,3022.8,2.31572]
[1720353330657,0.07050902,3023.2,3022.6,2.31583]
[1720353330658,7.238,3023.3,3022.6,2.31583]
[1720353331021,7.238,3023.1,3022.6,2.31583]
[1720353331355,0.0708252,3023.0,3022.6,2.31581]
[1720353331559,0.0708252,3023.0,3022.6,4.63163]
[1720353331711,0.0708252,3023.0,3022.6,2.31581]
[1720353331906,0.0708252,3023.0,3022.6,4.63164]
[1720353332141,0.0708252,3023.0,3022.6,2.31581]
[1720353332341,0.0708252,3023.0,3022.7,2.31579]
[1720353333312,0.0708252,3023.0,3022.5,5.3159]
[1720353334453,0.0708252,3023.0,3022.5,5.1859]
[1720353334812,0.0708252,3023.0,3022.5,5.0559]
[1720353336119,0.0708252,3023.0,3022.5,2.3159]
[1720353336750,0.0708252,3023.0,3022.5,4.63181]
[1720353337574,6.9133,3022.9,3022.3,2.31609]
[1720353337747,6.9133,3022.9,3022.5,2.3159]
[1720353338060,0.07068652,3022.8,3022.5,2.3159]